fUST/lending_fUST_20250320
["ID","MTS","AMOUNT","RATE_DAILY","PERIOD"]
[356450666,1742464232036,-178.935,0.00021918,2]
[356450667,1742464232047,-500.0,0.00021918,2]
[356450668,1742464232056,-300.0,0.00021998,2]
[356450669,1742464232066,-312.41462073,0.00021999,2]
[356450682,1742464237818,-614.08328978,0.00021779,2]
[356450683,1742464237828,-187.58537927,0.00021999,2]
[356450684,1742464237837,-269.53000649,0.00021999,2]
[356450685,1742464237849,-230.46999351,0.00021999,2]
[356450686,1742464237859,-500.0,0.00021999,2]
[356450687,1742464237869,-181.47750454,0.00021999,2]
[356450688,1742464237881,-318.52249546,0.00021999,2]
[356450689,1742464237891,-500.0,0.00021999,2]
[356450690,1742464237901,-500.0,0.00021999,2]
[356450691,1742464237911,-500.0,0.00021999,2]
[356450692,1742464237920,-500.0,0.00021999,2]
[356450693,1742464237930,-500.0,0.00021999,2]
[356450694,1742464237939,-500.0,0.00021999,2]
[356450695,1742464237948,-500.0,0.00021999,2]
[356450696,1742464237958,-500.0,0.00021999,2]
[356450697,1742464237967,-500.0,0.00021999,2]
[356450699,1742464237976,-500.0,0.00021999,2]
[356450700,1742464237986,-500.0,0.00021999,2]
[356450701,1742464237995,-500.0,0.00021999,2]
[356450702,1742464238005,-500.0,0.00021999,2]
[356450703,1742464238015,-500.0,0.00021999,2]
[356450704,1742464238026,-500.0,0.00021999,2]
[356450705,1742464238036,-500.0,0.00021999,2]
[356450706,1742464238046,-500.0,0.00021999,2]
[356450707,1742464238055,-500.0,0.00021999,2]
[356450708,1742464238065,-500.0,0.00021999,2]
[356450709,1742464238076,-500.0,0.00021999,2]
[356450710,1742464238086,-500.0,0.00021999,2]
[356450711,1742464238096,-500.0,0.00021999,2]
[356450712,1742464238106,-500.0,0.00021999,2]
[356450713,1742464238116,-500.0,0.00021999,2]
[356450714,1742464238126,-500.0,0.00021999,2]
[356450715,1742464238137,-500.0,0.00021999,2]
[356450716,1742464238148,-500.0,0.00021999,2]
[356450717,1742464238158,-500.0,0.00021999,2]
[356450718,1742464238169,-500.0,0.00021999,2]
[356450719,1742464238179,-500.0,0.00021999,2]
[356450720,1742464238189,-500.0,0.00021999,2]
[356450721,1742464238198,-500.0,0.00021999,2]
[356450722,1742464238208,-500.0,0.00021999,2]
[356450723,1742464238218,-500.0,0.00021999,2]
[356450724,1742464238227,-178.84190164,0.00021999,2]
[356450725,1742464238237,-500.0,0.00021999,2]
[356450726,1742464238247,-500.0,0.00021999,2]
[356450727,1742464238256,-500.0,0.00021999,2]
[356450728,1742464238265,-500.0,0.00021999,2]
[356450729,1742464238275,-500.0,0.00022,2]
[356450730,1742464238284,-502.34069971,0.00022,2]
[356450731,1742464238294,-500.0,0.00022,2]
[356450732,1742464238303,-637.80866703,0.00022,2]
[356450733,1742464238313,-500.0,0.00022,2]
[356450734,1742464238322,-500.73605042,0.00022,2]
[356450735,1742464238331,-179.12647384,0.00022,2]
[356450736,1742464238340,-500.0,0.00022,2]
[356450737,1742464238350,-500.0,0.00022,2]
[356450738,1742464238359,-500.0,0.00022,2]
[356450739,1742464238369,-500.0,0.00022,2]
[356450740,1742464238379,-502.66977538,0.00022,2]
[356450741,1742464238389,-500.0,0.00022,2]
[356450742,1742464238399,-500.0,0.00022,2]
[356450743,1742464238409,-500.0,0.00022,2]
[356450744,1742464238418,-500.0,0.00022,2]
[356450745,1742464238428,-502.74488209,0.00022,2]
[356450746,1742464238437,-500.0,0.00022,2]
[356450747,1742464238447,-10000.0,0.00022925,2]
[356450748,1742464238457,-1045.58559714,0.00027379,2]
[356450749,1742464238469,-673.13855901,0.00027479,5]
[356450750,1742464238479,-1000.0,0.00027479,5]
[356450751,1742464238489,-502.04496052,0.00027479,5]
[356450752,1742464238499,-1000.0,0.00027479,5]
[356450753,1742464238510,-1000.0,0.00027479,5]
[356450754,1742464238520,-1000.0,0.00027479,5]
[356450755,1742464238530,-1000.0,0.00027479,5]
[356450756,1742464238541,-1000.0,0.00027479,5]
[356450757,1742464238554,-1000.0,0.00027479,5]
[356450758,1742464238566,-1000.0,0.00027479,5]
[356450759,1742464238575,-1000.0,0.00027479,5]
[356450760,1742464238584,-1000.0,0.00027479,5]
[356450761,1742464238594,-1045.58559707,0.00028463,2]
[356450762,1742464238603,-1045.58559707,0.00029547,2]
[356450763,1742464238612,-1045.58559707,0.00030631,2]
[356450764,1742464238620,-150.0,0.00030707,14]
[356450765,1742464238630,-150.0,0.00030707,14]
[356450766,1742464238640,-1045.58559707,0.00031716,2]
[356450767,1742464238650,-716.1425248,0.00031918,30]
[356450768,1742464238659,-358.0712624,0.00031918,30]
[356450769,1742464238672,-358.0712624,0.00031918,30]
[356450770,1742464238682,-358.0712624,0.00031918,30]
[356450771,1742464238692,-358.0712624,0.00031918,30]
[356450772,1742464238703,-358.0712624,0.00031918,30]
[356450773,1742464238712,-358.0712624,0.00031918,30]
[356450774,1742464238722,-358.0712624,0.00031918,30]
[356450775,1742464238732,-358.0712624,0.00031918,30]
[356450776,1742464238742,-358.0712624,0.00031918,30]
[356450777,1742464238751,-358.0712624,0.00031918,30]
[356450778,1742464238760,-358.0712624,0.00031918,30]
[356450779,1742464238770,-358.0712624,0.00031918,30]
[356450780,1742464238780,-358.0712624,0.00031918,30]
[356450781,1742464238789,-358.0712624,0.00031918,30]
[356450782,1742464238799,-358.0712624,0.00031941,30]
[356450783,1742464238809,-251.0,0.000324,2]
[356450784,1742464238818,-4906.5397695,0.000325,21]
[356450785,1742464238831,-1316.49258362,0.000325,21]
[356450786,1742464238859,-2792.10489683,0.000325,21]
[356450811,1742464240131,-994.5,0.000325,21]
[356450813,1742464240143,-26032.55835437,0.000325,21]
[356450851,1742464240502,-37182.3990218,0.000325,21]
[356450902,1742464243288,-854.98596757,0.000325,21]
[356450927,1742464246117,-358.0712624,0.00031918,30]
[356450928,1742464246127,-663.77569155,0.000325,21]
[356450978,1742465432201,-475.9,0.00030554,2]
[356451013,1742465440428,-122.7239501,0.00030554,2]
[356451014,1742465440439,-170.5031937,0.00030732,2]
[356451015,1742465440449,-107.11713699,0.00030793,2]
[356451016,1742465440461,-368.78286301,0.00030793,2]
[356451017,1742465440471,-358.0712624,0.00030959,30]
[356451018,1742465440481,-222.89452342,0.00031,5]
[356451019,1742465440490,-358.0712624,0.00031,30]
[356451020,1742465440500,-358.0712624,0.00031,30]
[356451021,1742465440509,-358.0712624,0.00031,30]
[356451022,1742465440519,-358.0712624,0.00031,30]
[356451023,1742465440528,-358.0712624,0.00031,30]
[356451024,1742465440538,-271.3668746,0.00031,30]
[356451025,1742465440548,-358.0712624,0.00031541,30]
[356451026,1742465440557,-220.0,0.00032,120]
[356451027,1742465440566,-154.1111524,0.00032055,30]
[356451028,1742465440577,-153.0,0.00032055,30]
[356451029,1742465440587,-153.0,0.00032055,30]
[356451030,1742465440597,-252.00000002,0.000324,2]
[356451031,1742465440606,-392.09459891,0.000324,2]
[356451032,1742465440615,-1145.22747431,0.0003245,20]
[356451033,1742465440626,-500.0,0.00032499,2]
[356451034,1742465440636,-500.0,0.00032499,2]
[356451035,1742465440646,-500.0,0.00032499,2]
[356451036,1742465440656,-617.88419017,0.00032499,2]
[356451037,1742465440666,-500.0,0.00032499,2]
[356451038,1742465440676,-500.0,0.00032499,2]
[356451039,1742465440686,-500.0,0.00032499,2]
[356451040,1742465440696,-282.86835499,0.00032499,2]
[356451041,1742465440706,-500.0,0.00032499,2]
[356451042,1742465440716,-500.0,0.00032499,2]
[356451043,1742465440726,-500.0,0.00032499,2]
[356451044,1742465440736,-278.96738476,0.00032499,2]
[356451045,1742465440753,-153.12093978,0.00032499,2]
[356451046,1742465440763,-178.935,0.00032499,32]
[356451047,1742465440773,-277.22977943,0.000325,21]
[356451048,1742465440784,-47617.25393533,0.000325,21]
[356451049,1742465440794,-1018.9,0.000325,120]
[356451050,1742465440803,-5000.0,0.000325,120]
[356451051,1742465440813,-392.0945989,0.00032728,2]
[356451052,1742465440822,-201.03829412,0.00032766,2]
[356451053,1742465440832,-457.01390289,0.00032774,2]
[356451054,1742465440841,-15000.26836117,0.00032775,20]
[356451055,1742465440852,-59506.74784342,0.00032775,20]
[356451056,1742465440865,-222000.0,0.00032776,2]
[356451057,1742465440877,-3000.0,0.00032776,2]
[356451058,1742465440888,-603.11488236,0.00032866,2]
[356451059,1742465440898,-500.74368639,0.00032873,5]
[356451060,1742465440911,-500.0,0.00032873,5]
[356451061,1742465440921,-340.25623938,0.00032873,5]
[356451062,1742465440931,-500.0,0.00032873,5]
[356451063,1742465440943,-500.0,0.00032873,5]
[356451064,1742465440954,-500.0,0.00032873,5]
[356451065,1742465440966,-500.0,0.00032873,5]
[356451066,1742465440977,-500.0,0.00032873,5]
[356451067,1742465440987,-500.0,0.00032873,5]
[356451068,1742465440997,-503.7560394,0.00032873,5]
[356451069,1742465441007,-500.0,0.00032873,5]
[356451070,1742465441018,-500.0,0.00032876,21]
[356451071,1742465441028,-516.00860416,0.00032876,21]
[356451072,1742465441039,-502.98501909,0.00032876,21]
[356451073,1742465441048,-500.0,0.00032876,21]
[356451074,1742465441059,-502.2429546,0.00032876,21]
[356451075,1742465441069,-201.04987398,0.00032876,21]
[356451076,1742465441079,-397.9794597,0.00032876,21]
[356451077,1742465441089,-501.69521235,0.00032876,21]
[356451078,1742465441098,-500.0,0.00032876,21]
[356451079,1742465441108,-500.98243124,0.00032876,21]
[356451080,1742465441118,-317.73901778,0.00032876,21]
[356451081,1742465441129,-504.39598858,0.00032876,21]
[356451082,1742465441139,-206.80813404,0.00032876,21]
[356451083,1742465441148,-504.53338678,0.00032876,21]
[356451084,1742465441158,-504.82723058,0.00032876,21]
[356451085,1742465441168,-500.0,0.00032876,21]
[356451086,1742465441182,-504.53865832,0.00032876,21]
[356451087,1742465441196,-500.0,0.00032876,21]
[356451088,1742465441211,-504.70336874,0.00032876,21]
[356451089,1742465441224,-503.739821,0.00032876,21]
[356451090,1742465441237,-181.62774334,0.00032876,21]
[356451091,1742465441248,-500.0,0.00032876,21]
[356451092,1742465441260,-501.67459835,0.00032876,21]
[356451093,1742465441274,-461.59802989,0.00032876,21]
[356451094,1742465441287,-500.54194128,0.00032876,21]
[356451095,1742465441300,-500.0,0.00032876,21]
[356451096,1742465441314,-500.0,0.00032876,21]
[356451097,1742465441327,-500.0,0.00032876,21]
[356451098,1742465441341,-500.0,0.00032876,21]
[356451099,1742465441353,-500.0,0.00032876,21]
[356451100,1742465441367,-500.0,0.00032876,21]
[356451101,1742465441381,-500.0,0.00032876,21]
[356451102,1742465441394,-500.0,0.00032876,21]
[356451103,1742465441407,-500.0,0.00032876,21]
[356451104,1742465441419,-825.42,0.00032876,21]
[356451105,1742465441431,-500.0,0.00032876,21]
[356451106,1742465441443,-564.14467311,0.00032876,21]
[356451107,1742465441456,-754.08,0.00032876,21]
[356451108,1742465441468,-500.0,0.00032876,21]
[356451109,1742465441481,-500.0,0.00032876,21]
[356451110,1742465441493,-500.0,0.00032876,120]
[356451111,1742465441506,-500.0,0.00032876,21]
[356451112,1742465441519,-501.6137918,0.00032876,21]
[356451113,1742465441530,-500.0,0.00032876,21]
[356451114,1742465441542,-500.0,0.00032876,7]
[356451115,1742465441553,-500.0,0.00032876,21]
[356451116,1742465441566,-772.84,0.00032876,21]
[356451117,1742465441579,-500.0,0.00032876,21]
[356451118,1742465441591,-500.64422196,0.00032876,21]
[356451119,1742465441604,-500.0,0.00032876,21]
[356451120,1742465441619,-500.0,0.00032876,21]
[356451121,1742465441636,-500.0,0.00032876,21]
[356451122,1742465441648,-500.0,0.00032876,21]
[356451123,1742465441661,-500.0,0.00032876,21]
[356451124,1742465441675,-865.21,0.00032876,21]
[356451125,1742465441689,-500.0,0.00032876,21]
[356451126,1742465441703,-500.0,0.00032876,21]
[356451127,1742465441715,-501.15,0.00032876,21]
[356451128,1742465441726,-1685.69,0.00032876,21]
[356451129,1742465441738,-500.0,0.00032876,21]
[356451130,1742465441748,-500.0,0.00032876,20]
[356451131,1742465441758,-500.0,0.00032876,21]
[356451132,1742465441769,-500.0,0.00032876,21]
[356451133,1742465441781,-500.0,0.00032876,21]
[356451134,1742465441795,-500.0,0.00032876,21]
[356451135,1742465441808,-500.0,0.00032876,21]
[356451136,1742465441818,-394.91255137,0.00032876,21]
[356451137,1742465441829,-500.0,0.00032876,21]
[356451138,1742465441841,-500.0,0.00032876,21]
[356451139,1742465441853,-576.7546968,0.00032876,21]
[356451140,1742465441868,-500.0,0.00032876,21]
[356451141,1742465441882,-507.32999311,0.00032876,21]
[356451142,1742465441894,-500.0,0.00032876,21]
[356451143,1742465441906,-601.71,0.00032876,21]
[356451144,1742465441918,-500.0,0.00032876,21]
[356451145,1742465441930,-500.0,0.00032876,21]
[356451146,1742465441941,-500.0,0.00032876,21]
[356451147,1742465441954,-1226.8,0.00032876,21]
[356451148,1742465441966,-500.0,0.00032876,21]
[356451149,1742465441978,-1290.12,0.00032876,21]
[356451150,1742465441993,-500.0,0.00032876,21]
[356451151,1742465442004,-500.0,0.00032876,21]
[356451152,1742465442016,-619.77,0.00032876,21]
[356451153,1742465442028,-500.0,0.00032876,21]
[356451154,1742465442042,-255.16771803,0.00032876,21]
[356451155,1742465442055,-500.0,0.00032876,21]
[356451156,1742465442067,-500.0,0.00032876,21]
[356451157,1742465442080,-500.0,0.00032876,21]
[356451158,1742465442092,-500.0,0.00032876,21]
[356451159,1742465442103,-500.0,0.00032876,21]
[356451160,1742465442114,-500.0,0.00032876,21]
[356451161,1742465442128,-1366.26,0.00032876,21]
[356451162,1742465442141,-500.0,0.00032876,21]
[356451163,1742465442154,-500.0,0.00032876,21]
[356451164,1742465442166,-500.0,0.00032876,21]
[356451165,1742465442177,-500.0,0.00032876,21]
[356451166,1742465442190,-500.0,0.00032876,21]
[356451167,1742465442202,-500.0,0.00032876,21]
[356451168,1742465442214,-532.16334303,0.00032876,21]
[356451169,1742465442226,-772.73,0.00032876,21]
[356451170,1742465442238,-500.0,0.00032876,21]
[356451171,1742465442249,-500.0,0.00032876,21]
[356451172,1742465442260,-500.0,0.00032876,21]
[356451173,1742465442273,-501.5057539,0.00032876,21]
[356451174,1742465442285,-500.0,0.00032876,21]
[356451175,1742465442297,-715.55,0.00032876,21]
[356451176,1742465442308,-500.0,0.00032876,21]
[356451177,1742465442319,-500.0,0.00032876,21]
[356451178,1742465442330,-500.0,0.00032876,21]
[356451179,1742465442341,-591.76,0.00032876,21]
[356451180,1742465442352,-500.0,0.00032876,21]
[356451181,1742465442363,-500.0,0.00032876,21]
[356451182,1742465442375,-500.0,0.00032876,21]
[356451183,1742465442388,-500.0,0.00032876,21]
[356451184,1742465442400,-484.04641615,0.00032876,21]
[356451185,1742465442411,-500.0,0.00032876,14]
[356451186,1742465442423,-637.25,0.00032876,21]
[356451187,1742465442433,-1305.88,0.00032876,21]
[356451188,1742465442445,-1736.61,0.00032876,21]
[356451189,1742465442455,-894.47,0.00032876,21]
[356451190,1742465442467,-500.0,0.00032876,21]
[356451191,1742465442478,-500.0,0.00032876,21]
[356451192,1742465442489,-500.0,0.00032876,21]
[356451193,1742465442500,-500.0,0.00032876,21]
[356451194,1742465442511,-639.02,0.00032876,21]
[356451195,1742465442522,-505.56986752,0.00032876,21]
[356451196,1742465442534,-500.0,0.00032876,21]
[356451197,1742465442545,-500.0,0.00032876,2]
[356451198,1742465442555,-508.40363775,0.00032876,21]
[356451199,1742465442570,-502.11498399,0.00032876,21]
[356451200,1742465442581,-1000.0,0.00032876,21]
[356451201,1742465442593,-500.0,0.00032876,21]
[356451202,1742465442604,-500.0,0.00032876,21]
[356451203,1742465442615,-500.0,0.00032876,21]
[356451204,1742465442627,-500.0,0.00032876,21]
[356451206,1742465442638,-500.0,0.00032876,21]
[356451208,1742465442650,-539.33,0.00032876,21]
[356451209,1742465442661,-501.30081675,0.00032876,21]
[356451210,1742465442673,-500.0,0.00032876,21]
[356451211,1742465442684,-500.0,0.00032876,21]
[356451212,1742465442695,-500.93,0.00032876,21]
[356451213,1742465442706,-500.0,0.00032876,21]
[356451214,1742465442718,-500.0,0.00032876,21]
[356451215,1742465442729,-500.0,0.00032876,21]
[356451216,1742465442740,-500.0,0.00032876,21]
[356451217,1742465442752,-500.0,0.00032876,21]
[356451218,1742465442763,-500.0,0.00032876,21]
[356451219,1742465442774,-500.0,0.00032876,21]
[356451220,1742465442786,-500.0,0.00032876,21]
[356451221,1742465442797,-656.35,0.00032876,21]
[356451223,1742465442808,-500.0,0.00032876,21]
[356451225,1742465442819,-1309.87,0.00032876,21]
[356451227,1742465442831,-661.43,0.00032876,21]
[356451230,1742465442843,-500.0,0.00032876,21]
[356451232,1742465442854,-500.0,0.00032876,21]
[356451233,1742465442868,-500.0,0.00032876,21]
[356451234,1742465442880,-500.0,0.00032876,21]
[356451235,1742465442891,-500.0,0.00032876,21]
[356451236,1742465442904,-500.0,0.00032876,21]
[356451237,1742465442917,-500.0,0.00032876,21]
[356451238,1742465442928,-500.0,0.00032876,21]
[356451239,1742465442940,-1171.03,0.00032876,21]
[356451240,1742465442951,-500.0,0.00032876,21]
[356451242,1742465442962,-500.0,0.00032876,21]
[356451243,1742465442973,-500.0,0.00032876,21]
[356451244,1742465442984,-500.0,0.00032876,21]
[356451245,1742465442995,-500.0,0.00032876,21]
[356451246,1742465443005,-547.59,0.00032876,21]
[356451248,1742465443016,-500.0,0.00032876,21]
[356451250,1742465443027,-500.0,0.00032876,21]
[356451251,1742465443038,-500.0,0.00032876,21]
[356451252,1742465443050,-500.0,0.00032876,2]
[356451254,1742465443061,-292.50101567,0.00032876,21]
[356451256,1742465443072,-1450.82,0.00032876,21]
[356451257,1742465443084,-500.0,0.00032876,2]
[356451258,1742465443095,-500.0,0.00032876,21]
[356451259,1742465443106,-500.0,0.00032876,21]
[356451261,1742465443116,-500.0,0.00032876,21]
[356451262,1742465443127,-500.0,0.00032876,21]
[356451263,1742465443138,-1243.46,0.00032876,21]
[356451264,1742465443149,-303.65936572,0.00032876,21]
[356451265,1742465443160,-500.0,0.00032876,21]
[356451266,1742465443170,-500.0,0.00032876,21]
[356451267,1742465443182,-770.55,0.00032876,21]
[356451268,1742465443193,-500.0,0.00032876,21]
[356451269,1742465443204,-500.0,0.00032876,21]
[356451270,1742465443215,-500.0,0.00032876,21]
[356451271,1742465443226,-604.97,0.00032876,21]
[356451272,1742465443237,-500.0,0.00032876,21]
[356451273,1742465443248,-500.0,0.00032876,21]
[356451274,1742465443259,-500.0,0.00032876,21]
[356451275,1742465443271,-500.0,0.00032876,21]
[356451276,1742465443282,-1016.19,0.00032876,21]
[356451277,1742465443293,-2276.73,0.00032876,21]
[356451278,1742465443304,-384.88906416,0.00032876,21]
[356451279,1742465443315,-500.0,0.00032876,21]
[356451280,1742465443325,-513.22129983,0.00032876,21]
[356451281,1742465443336,-833.75,0.00032876,21]
[356451282,1742465443346,-1259.42,0.00032876,21]
[356451283,1742465443356,-500.0,0.00032876,21]
[356451284,1742465443366,-500.0,0.00032876,21]
[356451285,1742465443376,-489.70507054,0.00032876,21]
[356451286,1742465443388,-500.0,0.00032876,21]
[356451287,1742465443398,-568.19,0.00032876,21]
[356451288,1742465443409,-500.0,0.00032876,21]
[356451289,1742465443419,-500.0,0.00032876,7]
[356451290,1742465443430,-500.0,0.00032876,21]
[356451292,1742465443441,-191.89666251,0.00032876,21]
[356451294,1742465443451,-500.0,0.00032876,21]
[356451297,1742465443463,-234.26,0.00032876,7]
[356451298,1742465443474,-910.21,0.00032876,21]
[356451299,1742465443484,-500.0,0.00032876,21]
[356451300,1742465443495,-330.20715502,0.00032876,21]
[356451301,1742465443506,-500.0,0.00032876,21]
[356451302,1742465443518,-198.0724879,0.00032876,21]
[356451303,1742465443529,-716.2,0.00032876,21]
[356451304,1742465443540,-500.0,0.00032876,21]
[356451306,1742465443552,-500.0,0.00032876,21]
[356451307,1742465443562,-577.16,0.00032876,21]
[356451308,1742465443573,-500.0,0.00032876,21]
[356451309,1742465443584,-500.0,0.00032876,21]
[356451310,1742465443594,-1401.67,0.00032876,21]
[356451311,1742465443605,-500.0,0.00032876,21]
[356451312,1742465443616,-956.87,0.00032876,21]
[356451313,1742465443627,-594.99,0.00032876,21]
[356451314,1742465443639,-2333.26,0.00032876,21]
[356451315,1742465443650,-672.09,0.00032876,21]
[356451316,1742465443661,-953.82,0.00032876,21]
[356451317,1742465443673,-504.56,0.00032876,21]
[356451318,1742465443684,-1438.29,0.00032876,21]
[356451319,1742465443695,-500.0,0.00032876,21]
[356451320,1742465443705,-500.0,0.00032876,21]
[356451321,1742465443716,-437.98906469,0.00032876,21]
[356451322,1742465443727,-500.0,0.00032876,21]
[356451323,1742465443738,-500.0,0.00032876,21]
[356451324,1742465443750,-500.0,0.00032876,21]
[356451325,1742465443761,-500.0,0.00032876,21]
[356451326,1742465443772,-500.0,0.00032876,21]
[356451327,1742465443784,-968.42,0.00032876,21]
[356451328,1742465443795,-805.02,0.00032876,21]
[356451329,1742465443806,-762.81,0.00032876,21]
[356451330,1742465443818,-500.0,0.00032876,21]
[356451331,1742465443829,-500.0,0.00032876,21]
[356451332,1742465443840,-500.0,0.00032876,21]
[356451333,1742465443851,-796.69,0.00032876,21]
[356451334,1742465443865,-513.49,0.00032876,21]
[356451335,1742465443876,-500.0,0.00032876,21]
[356451336,1742465443889,-500.0,0.00032876,21]
[356451337,1742465443900,-868.16,0.00032876,21]
[356451338,1742465443911,-507.82,0.00032876,21]
[356451339,1742465443922,-1757.97,0.00032876,21]
[356451340,1742465443933,-631.52,0.00032876,21]
[356451341,1742465443946,-508.02,0.00032876,21]
[356451342,1742465443956,-500.0,0.00032876,21]
[356451343,1742465443967,-500.0,0.00032876,21]
[356451344,1742465443978,-1346.96,0.00032876,21]
[356451345,1742465443989,-500.0,0.00032876,21]
[356451346,1742465443999,-500.0,0.00032876,21]
[356451347,1742465444010,-859.16,0.00032876,21]
[356451348,1742465444020,-500.0,0.00032876,21]
[356451349,1742465444032,-574.26,0.00032876,21]
[356451350,1742465444043,-1470.45,0.00032876,21]
[356451351,1742465444054,-555.26,0.00032876,21]
[356451352,1742465444065,-1060.96,0.00032876,21]
[356451353,1742465444077,-500.0,0.00032876,21]
[356451354,1742465444088,-500.0,0.00032876,21]
[356451355,1742465444099,-500.0,0.00032876,21]
[356451356,1742465444110,-500.0,0.00032876,21]
[356451357,1742465444120,-1067.97,0.00032876,21]
[356451358,1742465444131,-594.51,0.00032876,21]
[356451359,1742465444142,-1891.62,0.00032876,21]
[356451360,1742465444153,-575.18,0.00032876,21]
[356451361,1742465444164,-500.0,0.00032876,21]
[356451362,1742465444175,-759.87,0.00032876,21]
[356451363,1742465444185,-500.0,0.00032876,21]
[356451364,1742465444195,-500.0,0.00032876,21]
[356451365,1742465444204,-500.0,0.00032876,21]
[356451366,1742465444214,-500.0,0.00032876,21]
[356451367,1742465444223,-500.0,0.00032876,21]
[356451368,1742465444232,-500.0,0.00032876,21]
[356451369,1742465444242,-500.0,0.00032876,21]
[356451370,1742465444617,-500.0,0.00032876,21]
[356451371,1742465444680,-1642.39,0.00032876,21]
[356451372,1742465444701,-500.0,0.00032876,21]
[356451373,1742465444720,-500.0,0.00032876,21]
[356451374,1742465444730,-500.0,0.00032876,21]
[356451375,1742465444739,-500.0,0.00032876,21]
[356451376,1742465444749,-765.28,0.00032876,21]
[356451377,1742465444758,-734.3,0.00032876,21]
[356451378,1742465444768,-500.0,0.00032876,21]
[356451379,1742465444777,-991.69,0.00032876,21]
[356451380,1742465444787,-500.0,0.00032876,21]
[356451381,1742465444797,-500.0,0.00032876,21]
[356451382,1742465444807,-500.0,0.00032876,21]
[356451383,1742465444816,-561.45,0.00032876,21]
[356451384,1742465444826,-500.0,0.00032876,21]
[356451385,1742465444835,-500.0,0.00032876,21]
[356451386,1742465444845,-500.0,0.00032876,21]
[356451387,1742465444855,-501.62604494,0.00032876,21]
[356451388,1742465444868,-1713.02,0.00032876,21]
[356451389,1742465444878,-3782.55,0.00032876,21]
[356451390,1742465444888,-500.0,0.00032876,21]
[356451391,1742465444898,-613.27,0.00032876,21]
[356451392,1742465444909,-1781.38,0.00032876,21]
[356451393,1742465444919,-500.0,0.00032876,21]
[356451394,1742465444928,-324.49415842,0.00032876,21]
[356451395,1742465444939,-500.0,0.00032876,21]
[356451396,1742465444948,-500.0,0.00032876,21]
[356451397,1742465444958,-613.19,0.00032876,21]
[356451398,1742465444967,-515.87619715,0.00032876,21]
[356451399,1742465444977,-500.0,0.00032876,21]
[356451400,1742465444987,-847.46,0.00032876,21]
[356451401,1742465444996,-1724.08,0.00032876,21]
[356451402,1742465445006,-500.0,0.00032876,21]
[356451403,1742465445016,-720.76,0.00032876,21]
[356451404,1742465445026,-1569.84,0.00032876,21]
[356451405,1742465445035,-550.62,0.00032876,120]
[356451406,1742465445044,-500.0,0.00032876,21]
[356451407,1742465445054,-500.84659815,0.00032876,21]
[356451408,1742465445064,-500.0,0.00032876,21]
[356451409,1742465445074,-2288.14,0.00032876,21]
[356451410,1742465445085,-3739.16,0.00032876,21]
[356451411,1742465445095,-500.0,0.00032876,21]
[356451412,1742465445105,-1089.34,0.00032876,21]
[356451413,1742465445115,-500.0,0.00032876,21]
[356451414,1742465445125,-1472.9,0.00032876,21]
[356451415,1742465445134,-500.0,0.00032876,21]
[356451416,1742465445144,-500.0,0.00032876,21]